fUSD/lending_fUSD_20260227
["ID","MTS","AMOUNT","RATE_DAILY","PERIOD"]
[406776082,1772173841211,-935.63818804,0.00028516,2]
[406776083,1772173841220,-151.0,0.00028516,7]
[406776084,1772173841229,-151.0,0.00028516,7]
[406776085,1772173841239,-155.767765,0.00028516,7]
[406776086,1772173841248,-151.0,0.00028516,7]
[406776087,1772173841257,-151.0,0.00028516,7]
[406776088,1772173841266,-278.322927,0.00028516,7]
[406776089,1772173841275,-151.0,0.00028516,7]
[406776090,1772173841284,-231.965238,0.00028516,7]
[406776091,1772173841293,-151.0,0.00028516,7]
[406776092,1772173841303,-158.542471,0.00028516,7]
[406776093,1772173841312,-158.542471,0.00028516,7]
[406776094,1772173841321,-158.542471,0.00028516,7]
[406776095,1772173841330,-158.542471,0.00028516,7]
[406776096,1772173841339,-323.903899,0.00028516,7]
[406776097,1772173841349,-151.0,0.00028516,7]
[406776098,1772173841358,-323.903899,0.00028516,7]
[406776099,1772173841367,-323.903899,0.00028516,7]
[406776100,1772173841375,-323.903899,0.00028516,7]
[406776101,1772173841385,-151.0,0.00028516,7]
[406776102,1772173841395,-151.0,0.00028516,7]
[406776103,1772173841404,-151.0,0.00028516,7]
[406776104,1772173841414,-153.011048,0.00028516,7]
[406776105,1772173841423,-151.0,0.00028516,7]
[406776106,1772173841432,-151.0,0.00028516,7]
[406776107,1772173841442,-151.0,0.00028516,7]
[406776108,1772173841452,-151.0,0.00028516,7]
[406776109,1772173841461,-151.0,0.00028516,7]
[406776110,1772173841470,-151.0,0.00028516,7]
[406776111,1772173841479,-376.791596,0.00028516,7]
[406776112,1772173841491,-376.791596,0.00028516,7]
[406776113,1772173841500,-151.0,0.00028516,7]
[406776114,1772173841510,-376.791596,0.00028516,7]
[406776115,1772173841519,-376.791596,0.00028516,7]
[406776116,1772173841528,-151.0,0.00028516,7]
[406776117,1772173841538,-151.0,0.00028516,7]
[406776118,1772173841547,-151.0,0.00028516,7]
[406776119,1772173841557,-151.0,0.00028516,7]
[406776120,1772173841567,-566.934424,0.00028516,7]
[406776121,1772173841576,-566.934424,0.00028516,7]
[406776122,1772173841585,-566.934424,0.00028516,7]
[406776123,1772173841595,-566.934424,0.00028516,7]
[406776124,1772173841604,-150.0,0.00028544,2]
[406776125,1772173841614,-199.72,0.00028639,2]
[406776126,1772173841624,-200.0,0.00029247,20]
[406776127,1772173841633,-300.0,0.00029259,21]
[406776128,1772173841645,-1000.0,0.00029525,2]
[406776129,1772173841665,-285.08183837,0.00029602,2]
[406776130,1772173841678,-233.84,0.00029965,2]
[406776131,1772173841689,-150.0,0.00029971,2]
[406776132,1772173841698,-244.7302024,0.0003,7]
[406776133,1772173841709,-244.7302024,0.0003,7]
[406776134,1772173841731,-244.7302024,0.0003,7]
[406776135,1772173841751,-244.7302024,0.0003,7]
[406776136,1772173841761,-1000.0,0.0003,30]
[406776137,1772173841771,-307.57516928,0.00030126,2]
[406776138,1772173841780,-2022.00864656,0.00030136,22]
[406776139,1772173841791,-1135.7077814,0.00030352,2]
[406776140,1772173841802,-992.17539101,0.0003052,2]
[406776141,1772173841813,-266.79,0.0003063,2]
[406776142,1772173841823,-199.72,0.00030685,2]
[406776143,1772173841833,-432.19,0.00030714,30]
[406776144,1772173841844,-150.0,0.00030794,2]
[406776145,1772173841853,-150.0,0.00031099,2]
[406776146,1772173841864,-505.0,0.00031168,16]
[406776147,1772173841874,-181107.40457744,0.00031175,2]
[406776148,1772173841891,-2253.09560657,0.00031175,2]
[406776149,1772173841903,-2181.6451335,0.00031175,2]
[406776150,1772173841947,-4150.70316796,0.00031175,2]
[406776151,1772173842121,-813.35464872,0.00031175,2]
[406776152,1772173842132,-2365.275,0.00031175,2]
[406776153,1772173842143,-2511.0,0.00031175,2]
[406776154,1772173842154,-3295.39,0.00031175,2]
[406776155,1772173842226,-1520.27388238,8.607e-05,2]
[406776156,1772173842236,-337460.11860901,0.00031175,2]
[406776157,1772173842246,-152.8213546,0.00031306,2]
[406776158,1772173842255,-8666.4447702,0.00031375,2]
[406776159,1772173842264,-150.0,0.0003147,2]
[406776160,1772173842273,-1982.7896365,0.00031623,2]
[406776161,1772173842282,-193.42,0.000318,30]
[406776162,1772173842292,-32273.0,0.000321,2]
[406776163,1772173842301,-300.0,0.00032369,33]
[406776164,1772173842311,-200.0,0.00032703,34]
[406776165,1772173842320,-151.0,0.00032877,31]
[406776166,1772173842329,-151.0,0.00032877,31]
[406776167,1772173842338,-375.95495348,0.00032877,5]
[406776168,1772173842347,-562.18013926,0.00032877,5]
[406776169,1772173842357,-1439.46,0.000329,14]
[406776170,1772173842367,-6180.31,0.000329,14]
[406776171,1772173842376,-4728.22,0.000329,14]
[406776172,1772173842386,-11734.72,0.000329,2]
[406776173,1772173842395,-150.0,0.00033043,2]
[406776174,1772173842405,-195.78,0.00033048,30]
[406776175,1772173842414,-5531.0,0.000333,3]
[406776176,1772173842424,-432.19,0.00033598,30]
[406776177,1772173842433,-152.8213546,0.00034152,2]
[406776178,1772173842442,-1277.0,0.00034355,2]
[406776179,1772173842452,-150.0,0.00034355,2]
[406776180,1772173842461,-921.0,0.00034355,2]
[406776181,1772173842471,-1211.0,0.00034355,2]
[406776182,1772173842480,-1340.0,0.00034355,2]
[406776183,1772173842490,-3498.0,0.00034355,2]
[406776185,1772173842499,-618.0,0.00034355,2]
[406776186,1772173842509,-505.0,0.00034423,19]
[406776188,1772173842518,-5531.0,0.000346,5]
[406776189,1772173842528,-150.0,0.00034696,2]
[406776190,1772173842537,-11734.72,0.000347,2]
[406776191,1772173842546,-1000.0,0.00034712,7]
[406776192,1772173842556,-1500.0,0.00034795,2]
[406776193,1772173842565,-6180.31,0.000348,14]
[406776194,1772173842574,-4728.22,0.000348,14]
[406776195,1772173842583,-1000.0,0.00034986,7]
[406776196,1772173842592,-1439.46,0.00035,14]
[406776197,1772173842601,-1000.0,0.00035,30]
[406776198,1772173842610,-200.0,0.00035,3]
[406776199,1772173842619,-285.08183837,0.0003505,2]
[406776200,1772173842629,-1000.0,0.0003526,7]
[406776201,1772173842638,-8666.4447702,0.00035464,2]
[406776202,1772173842647,-1000.0,0.00035534,7]
[406776203,1772173842657,-159.70078536,0.00035589,30]
[406776204,1772173842667,-500.0,0.00035616,7]
[406776205,1772173842680,-460.74468726,0.00035616,7]
[406776206,1772173842689,-1000.0,0.00035616,14]
[406776207,1772173842698,-544.21519612,0.00035616,5]
[406776208,1772173842707,-151.0,0.00035616,31]
[406776209,1772173842716,-219.601057,0.00035616,31]
[406776210,1772173842726,-11734.72,0.000357,2]
[406776211,1772173842735,-9697.0,0.00035775,5]
[406776212,1772173842744,-1082.0,0.0003589,14]
[406776213,1772173842753,-845.0,0.00035955,11]
[406776214,1772173842762,-1000.0,0.00035994,2]
[406776215,1772173842771,-1000.0,0.00035994,2]
[406776216,1772173842780,-1000.0,0.00035994,2]
[406776217,1772173842790,-1000.0,0.00035994,2]
[406776218,1772173842802,-1000.0,0.00035994,2]
[406776219,1772173842812,-6180.31,0.00036,14]
[406776220,1772173842821,-4728.22,0.00036,14]
[406776221,1772173842830,-500.0,0.00036045,120]
[406776222,1772173842840,-500.0,0.00036045,10]
[406776223,1772173842849,-1000.0,0.0003605,2]
[406776224,1772173842859,-1000.0,0.0003605,2]
[406776225,1772173842869,-1000.0,0.0003605,2]
[406776226,1772173842879,-1000.0,0.0003605,2]
[406776227,1772173842889,-1000.0,0.0003605,2]
[406776228,1772173842898,-500.0,0.00036058,120]
[406776229,1772173842907,-5000.0,0.00036104,10]
[406776230,1772173842917,-5000.0,0.00036155,10]
[406776231,1772173842926,-200.0,0.00036158,47]
[406776232,1772173842935,-2517.99,0.00036176,10]
[406776233,1772173842945,-25000.0,0.0003618,10]
[406776234,1772173842955,-1439.46,0.000362,14]
[406776235,1772173842964,-191.03,0.00036246,10]
[406776236,1772173842973,-160.67,0.00036248,10]
[406776237,1772173842983,-151.0,0.00036272,14]
[406776238,1772173842993,-5000.0,0.00036275,10]
[406776239,1772173843002,-5000.0,0.00036343,10]
[406776240,1772173843012,-5000.0,0.00036356,10]
[406776241,1772173843021,-1982.7896365,0.00036376,2]
[406776242,1772173843029,-5000.0,0.00036388,10]
[406776243,1772173843039,-300.0,0.00036396,44]
[406776244,1772173843048,-5000.0,0.00036397,10]
[406776245,1772173843057,-11734.72,0.000364,2]
[406776246,1772173843066,-5000.0,0.0003642,10]
[406776247,1772173843075,-5000.0,0.00036427,10]
[406776248,1772173843084,-150.0,0.0003643,2]
[406776249,1772173843094,-3577.25,0.00036435,10]
[406776250,1772173843102,-177.86,0.00036442,2]
[406776251,1772173843111,-5000.0,0.00036468,10]
[406776252,1772173843120,-195.78,0.00036471,30]
[406776253,1772173843130,-432.19,0.00036482,30]
[406776254,1772173843139,-2518.0,0.00036483,10]
[406776255,1772173843148,-25000.0,0.00036488,10]
[406776256,1772173843156,-5000.0,0.00036488,10]
[406776257,1772173843165,-177.86,0.00036527,2]
[406776258,1772173843174,-5000.0,0.00036529,10]
[406776259,1772173843183,-25000.0,0.00036574,10]
[406776260,1772173843193,-1698.94,0.00036579,10]
[406776261,1772173843201,-177.85107403,0.00036613,2]
[406776262,1772173843210,-5000.0,0.00036627,10]
[406776263,1772173843219,-579.3,0.00036642,5]
[406776264,1772173843229,-5000.0,0.00036656,10]
[406776265,1772173843241,-5000.0,0.00036672,10]
[406776266,1772173843250,-25000.0,0.00036684,10]
[406776267,1772173843259,-1313.54,0.00036695,10]
[406776268,1772173843268,-5000.0,0.00036699,10]
[406776269,1772173843277,-500.0,0.00036711,120]
[406776270,1772173843287,-632.8120254,0.00036711,10]
[406776271,1772173843296,-25000.0,0.00036712,10]
[406776272,1772173843305,-5000.0,0.00036775,10]
[406776273,1772173843316,-5000.0,0.00036788,10]
[406776274,1772173843327,-5000.0,0.00036815,10]
[406776275,1772173843335,-1250.5,0.0003682,10]
[406776276,1772173843345,-4407.49,0.00036853,10]
[406776277,1772173843354,-5000.0,0.0003687,10]
[406776278,1772173843363,-5000.0,0.0003687,10]
[406776279,1772173843372,-1250.51,0.00036887,10]
[406776280,1772173843381,-818.9095,0.00036888,7]
[406776281,1772173843390,-211.0,0.0003689,30]
[406776282,1772173843399,-5000.0,0.000369,10]
[406776283,1772173843408,-6180.31,0.000369,14]
[406776284,1772173843417,-4728.22,0.000369,14]
[406776285,1772173843427,-14956.31,0.00036917,10]
[406776286,1772173843591,-500.0,0.00036939,120]
[406776287,1772173843601,-5000.0,0.00036957,10]
[406776288,1772173843610,-5000.0,0.00036971,10]
[406776289,1772173843619,-1657.9,0.00036981,10]
[406776290,1772173843628,-199.86,0.0003726,120]
[406776291,1772173843638,-252.257104,0.0003726,31]
[406776292,1772173843647,-1439.46,0.000373,14]
[406776293,1772173843656,-11734.72,0.000373,2]
[406776294,1772173843665,-1040.2,0.00037331,7]
[406776295,1772173843675,-1277.0,0.00037355,2]
[406776296,1772173843684,-150.0,0.00037355,2]
[406776297,1772173843694,-921.0,0.00037355,2]
[406776298,1772173843703,-1211.0,0.00037355,2]
[406776299,1772173843715,-1340.0,0.00037355,2]
[406776300,1772173843724,-3498.0,0.00037355,2]
[406776301,1772173843733,-618.0,0.00037355,2]
[406776302,1772173843743,-505.0,0.00037679,22]
[406776303,1772173843752,-2291.888,0.00037704,49]
[406776304,1772173843761,-344.487,0.00037704,49]
[406776305,1772173843771,-936.35900762,0.00037776,2]
[406776306,1772173843781,-1131.98391739,0.00037795,2]
[406776307,1772173843790,-69717.47646364,0.00037887,7]
[406776308,1772173843801,-100608.27883081,0.00037887,7]
[406776322,1772173875327,-14645.83041748,0.00014357,2]
[406776323,1772173875337,-151.0,0.00030137,7]
[406776324,1772173875346,-674.0,0.00031175,30]
[406776325,1772173875355,-1084.0,0.00031175,30]
[406776326,1772173875364,-4076.56689884,0.00037887,7]
[406776327,1772173875373,-7716.83945985,0.00037887,7]
[406776328,1772173875382,-1040.2,0.00038019,7]
[406776329,1772173875392,-1563.74,0.00038034,30]
[406776330,1772173875401,-882.46526268,0.000381,33]
[406776331,1772173875411,-150.0,0.00038252,2]
[406776332,1772173875420,-6180.31,0.000383,14]
[406776333,1772173875429,-4728.22,0.000383,14]
[406776334,1772173875438,-237.37622037,0.0003838,5]
[406776335,1772173875447,-11734.72,0.000384,30]
[406776336,1772173875456,-233.84,0.00038677,2]
[406776337,1772173875466,-1040.2,0.00038707,7]
[406776338,1772173875475,-1439.46,0.000389,14]
[406776339,1772173875484,-1000.0,0.00038904,5]
[406776340,1772173875493,-211.0,0.0003891,30]
[406776341,1772173875502,-302.55360756,0.0003906,30]
[406776342,1772173875512,-150.0,0.0003906,30]
[406776343,1772173875521,-209.99304853,0.00039191,120]
[406776344,1772173875530,-222.28872477,0.00039191,120]
[406776345,1772173875539,-154.49167072,0.00039191,120]
[406776346,1772173875548,-432.19,0.00039366,30]
[406776347,1772173875557,-1040.2,0.00039395,30]
[406776348,1772173875566,-500.0,0.00039399,120]
[406776349,1772173875575,-11734.72,0.000394,30]
[406776350,1772173875585,-500.0,0.00039756,120]
[406776351,1772173875594,-500.0,0.00039757,2]
[406776352,1772173875603,-500.0,0.00039757,2]
[406776353,1772173875612,-500.0,0.00039757,2]
[406776354,1772173875621,-500.0,0.00039757,2]
[406776355,1772173875630,-500.0,0.00039757,2]
[406776356,1772173875639,-500.0,0.00039757,2]
[406776357,1772173875648,-500.0,0.00039757,2]
[406776358,1772173875657,-500.0,0.00039757,2]
[406776359,1772173875666,-500.0,0.00039757,2]
[406776360,1772173875675,-500.0,0.00039757,2]
[406776361,1772173875684,-500.0,0.00039757,2]
[406776362,1772173875693,-500.0,0.00039757,2]
[406776363,1772173875702,-500.0,0.00039757,2]
[406776364,1772173875711,-500.0,0.00039757,2]
[406776365,1772173875720,-500.0,0.00039757,2]
[406776366,1772173875729,-500.0,0.00039757,2]
[406776367,1772173875739,-500.0,0.00039757,2]
[406776368,1772173875748,-500.0,0.00039757,2]
[406776369,1772173875757,-500.0,0.00039757,2]
[406776370,1772173875766,-500.0,0.00039757,2]
[406776371,1772173875776,-500.0,0.00039757,2]
[406776372,1772173875785,-500.0,0.00039757,2]
[406776373,1772173875794,-500.0,0.00039757,2]
[406776374,1772173875803,-500.0,0.00039757,2]
[406776375,1772173875817,-500.0,0.00039757,2]
[406776376,1772173875827,-500.0,0.00039757,2]
[406776377,1772173875835,-500.0,0.00039757,2]
[406776378,1772173875846,-500.0,0.00039757,2]
[406776379,1772173875855,-500.0,0.00039757,2]
[406776380,1772173875864,-500.0,0.00039757,2]
[406776381,1772173875873,-500.0,0.00039757,2]
[406776382,1772173875883,-500.0,0.00039757,2]
[406776383,1772173875892,-500.0,0.00039757,2]
[406776384,1772173875901,-500.0,0.00039757,2]
[406776385,1772173875910,-500.0,0.00039757,2]
[406776386,1772173875920,-500.0,0.00039757,2]
[406776387,1772173875929,-500.0,0.00039757,2]
[406776388,1772173875938,-500.0,0.00039757,2]
[406776389,1772173875947,-500.0,0.00039757,2]
[406776390,1772173875956,-500.0,0.00039757,2]
[406776391,1772173875965,-500.0,0.00039757,2]
[406776392,1772173875974,-500.0,0.00039757,2]
[406776393,1772173875983,-500.0,0.00039757,2]
[406776394,1772173875992,-500.0,0.00039757,2]
[406776395,1772173876002,-500.0,0.00039757,2]
[406776396,1772173876011,-500.0,0.00039757,2]
[406776397,1772173876020,-500.0,0.00039757,2]
[406776398,1772173876029,-427.0,0.00039757,2]
[406776399,1772173876038,-800.0,0.00039757,13]
[406776400,1772173876048,-800.0,0.00039757,13]
[406776401,1772173876057,-800.0,0.00039757,13]
[406776402,1772173876066,-800.0,0.00039757,13]
[406776403,1772173876075,-800.0,0.00039757,13]
[406776404,1772173876084,-800.0,0.00039757,13]
[406776405,1772173876093,-800.0,0.00039757,13]
[406776406,1772173876102,-800.0,0.00039757,13]
[406776407,1772173876110,-800.0,0.00039757,13]
[406776408,1772173876119,-800.0,0.00039757,13]
[406776409,1772173876128,-800.0,0.00039757,13]
[406776410,1772173876137,-800.0,0.00039757,13]
[406776411,1772173876147,-800.0,0.00039757,13]
[406776412,1772173876157,-800.0,0.00039757,13]
[406776413,1772173876166,-800.0,0.00039757,13]
[406776414,1772173876175,-800.0,0.00039757,13]
[406776415,1772173876184,-800.0,0.00039757,13]
[406776416,1772173876193,-800.0,0.00039757,13]
[406776417,1772173876202,-800.0,0.00039757,13]
[406776418,1772173876211,-800.0,0.00039757,13]
[406776419,1772173876222,-800.0,0.00039757,13]
[406776420,1772173876231,-800.0,0.00039757,13]
[406776421,1772173876240,-800.0,0.00039757,13]
[406776422,1772173876249,-800.0,0.00039757,13]
[406776423,1772173876258,-800.0,0.00039757,13]
[406776424,1772173876267,-800.0,0.00039757,13]
[406776425,1772173876277,-467.83226716,0.00039757,13]
[406776428,1772175013576,-151.0,8.989e-05,2]
[406776429,1772175013600,-820.0,8.99e-05,2]
[406776430,1772175013623,-150.0,8.991e-05,2]
[406776431,1772175013648,-1139.86367354,8.991e-05,2]
[406776432,1772175013676,-417.40649786,8.991e-05,2]
[406776433,1772175013701,-179.75650703,8.991e-05,2]
[406776434,1772175013725,-500.0,8.991e-05,2]
[406776435,1772175013745,-500.0,8.991e-05,2]
[406776436,1772175013766,-522.23801215,8.991e-05,2]
[406776437,1772175013786,-500.0,8.991e-05,2]
[406776438,1772175013813,-500.0,8.991e-05,2]
[406776439,1772175013836,-500.0,8.991e-05,2]
[406776440,1772175013861,-500.0,8.991e-05,2]
[406776441,1772175013885,-500.0,8.991e-05,2]
[406776442,1772175013909,-616.96942693,8.991e-05,2]
[406776443,1772175013932,-500.0,8.991e-05,2]
[406776444,1772175013956,-2002.76588249,8.992e-05,2]
[406776445,1772175014604,-10000.0,8.992e-05,2]
[406776446,1772175017951,-10000.0,8.992e-05,2]
[406776447,1772175020549,-10000.0,8.992e-05,2]
[406776451,1772175031886,-5000.0,8.992e-05,2]
[406776452,1772175031961,-1367.37507571,8.992e-05,2]
[406776453,1772175031973,-2831.30578171,8.992e-05,2]
[406776454,1772175032034,-111287.86513759,8.992e-05,2]
[406776455,1772175032045,-366155.0401915,8.992e-05,2]
[406776456,1772175032058,-1254.41808677,8.992e-05,2]
[406776457,1772175038057,-1480101.22984423,8.992e-05,2]
[406776458,1772175038067,-1139.86367354,9.04e-05,2]
[406776459,1772175038076,-1139.86367354,9.089e-05,2]
[406776460,1772175038086,-195.0,9.09e-05,2]
[406776461,1772175038096,-195.0,9.09e-05,2]
[406776462,1772175038339,-213.66,9.091e-05,2]
[406776463,1772175038349,-1594.23,9.091e-05,2]
[406776464,1772175038358,-9999.99,9.171e-05,2]
[406776465,1772175038368,-299.99,9.171e-05,2]
[406776467,1772175038377,-150.99,9.171e-05,2]
[406776469,1772175038386,-150.99,9.171e-05,2]
[406776471,1772175038396,-1594.23,9.365e-05,2]
[406776473,1772175038406,-246.739447,9.5e-05,2]
[406776475,1772175038415,-9999.99,9.5e-05,2]
[406776476,1772175038425,-999.99,9.5e-05,2]
[406776478,1772175038435,-1594.23,9.639e-05,2]
[406776479,1772175038444,-250.0,9.89e-05,2]
[406776480,1772175038455,-1594.23,9.913e-05,2]
[406776481,1772175038464,-419.91,9.973e-05,2]
[406776482,1772175038474,-195.0,9.998e-05,2]
[406776483,1772175038484,-195.0,9.998e-05,2]
[406776484,1772175038493,-2120.96148083,0.0001,2]
[406776485,1772175038503,-151.0,0.0001,2]
[406776486,1772175038513,-151.0,0.0001,2]
[406776487,1772175038521,-151.0,0.0001,2]
[406776488,1772175038531,-151.0,0.0001,2]
[406776489,1772175038541,-151.0,0.0001,2]
[406776490,1772175038550,-151.0,0.0001,2]
[406776491,1772175038561,-151.0,0.0001,2]
[406776492,1772175038570,-151.0,0.0001,2]
[406776493,1772175038580,-151.0,0.0001,2]
[406776494,1772175038589,-151.0,0.0001,2]
[406776495,1772175038597,-151.0,0.0001,2]
[406776496,1772175038606,-151.0,0.0001,2]
[406776497,1772175038616,-151.0,0.0001,2]
[406776498,1772175038626,-151.0,0.0001,2]
[406776499,1772175038634,-151.0,0.0001,2]
[406776500,1772175038643,-151.0,0.0001,2]
[406776501,1772175038653,-151.0,0.0001,2]
[406776502,1772175038662,-151.0,0.0001,2]
[406776503,1772175038675,-151.0,0.0001,2]
[406776504,1772175038685,-151.0,0.0001,2]
[406776505,1772175038695,-1594.23,0.00010187,2]
[406776506,1772175038704,-500.0,0.000103,2]
[406776507,1772175038713,-543.75451416,0.000103,2]
[406776508,1772175038723,-888.46058708,0.000103,2]
[406776509,1772175038732,-500.0,0.000103,2]
[406776510,1772175038741,-500.0,0.000103,2]
[406776511,1772175038750,-500.0,0.000103,2]
[406776512,1772175038760,-869.50668288,0.000103,2]
[406776513,1772175038768,-869.88788903,0.000103,2]
[406776514,1772175038778,-500.0,0.000103,2]
[406776515,1772175038787,-500.0,0.000103,2]
[406776516,1772175038796,-500.0,0.000103,2]
[406776517,1772175038805,-500.0,0.000103,2]
[406776518,1772175038814,-500.0,0.000103,2]
[406776519,1772175038823,-500.0,0.000103,2]
[406776520,1772175038832,-500.0,0.000103,2]
[406776521,1772175038841,-500.0,0.000103,2]
[406776522,1772175038850,-500.0,0.000103,2]
[406776523,1772175038859,-500.0,0.000103,2]
[406776524,1772175038871,-500.0,0.000103,2]
[406776525,1772175038881,-500.0,0.000103,2]
[406776526,1772175038890,-727.54176208,0.000103,2]
[406776527,1772175038899,-600.0,0.000103,2]
[406776528,1772175038908,-563.07260655,0.000103,2]
[406776529,1772175038917,-503.2038976,0.000103,2]
[406776530,1772175038926,-744.54912065,0.000103,2]
[406776531,1772175038936,-500.0,0.000103,2]
[406776532,1772175038945,-500.0,0.000103,2]
[406776533,1772175038954,-500.0,0.000103,2]
[406776534,1772175038964,-500.0,0.000103,2]
[406776535,1772175038972,-638.16101096,0.000103,2]
[406776536,1772175038982,-1594.23,0.00010461,2]
[406776537,1772175038991,-1594.23,0.00010735,2]
[406776538,1772175039001,-1500.0,0.00010952,2]
[406776539,1772175039011,-1594.23,0.00011009,2]
[406776540,1772175039019,-419.91,0.0001122,2]
[406776541,1772175039029,-1594.23,0.00011283,2]
[406776542,1772175039038,-308.424309,0.000114,2]
[406776543,1772175039047,-5118.29,0.00011507,2]
[406776544,1772175039056,-1594.23,0.00011557,2]
[406776545,1772175039065,-1859.58936759,0.000118,3]
[406776546,1772175039078,-1594.23,0.00011831,2]
[406776547,1772175039087,-10000.0,0.00011855,2]
[406776548,1772175039096,-219.62898678,0.000119,2]
[406776549,1772175039105,-220.64653153,0.00011927,2]
[406776550,1772175039118,-151.0,0.00011952,2]
[406776551,1772175039127,-1500000.0,0.00011955,2]
[406776552,1772175039137,-307.5751693,0.00012,2]
[406776553,1772175039146,-2346.00955476,0.000121,2]
[406776554,1772175039157,-9763.886945,0.000121,2]
[406776555,1772175039168,-1594.2449579,0.00012105,2]
[406776556,1772175039177,-5832.8299848,0.000123,2]
[406776557,1772175039189,-419.91,0.00012466,2]
[406776558,1772175039198,-200.0,0.00012489,2]
[406776559,1772175039208,-1000.0,0.0001259,2]
[406776560,1772175039217,-32875.3991,0.0001259,2]
[406776561,1772175039226,-500.0,0.0001289,2]
[406776562,1772175039236,-500.0,0.0001289,2]
[406776563,1772175039246,-500.0,0.0001289,2]
[406776564,1772175039255,-500.0,0.0001289,2]
[406776565,1772175039264,-500.0,0.0001289,2]
[406776566,1772175039277,-500.0,0.0001289,2]
[406776567,1772175039287,-500.0,0.0001289,2]
[406776568,1772175039296,-500.0,0.0001289,2]
[406776569,1772175039306,-500.0,0.0001289,2]
[406776570,1772175039315,-500.0,0.0001289,2]
[406776571,1772175039325,-500.0,0.0001289,2]
[406776572,1772175039334,-500.0,0.0001289,2]
[406776573,1772175039343,-500.0,0.0001289,2]
[406776574,1772175039352,-500.0,0.0001289,2]
[406776575,1772175039361,-500.0,0.0001289,2]
[406776576,1772175039372,-500.0,0.0001289,2]
[406776577,1772175039384,-500.0,0.0001289,2]
[406776578,1772175039394,-500.0,0.0001289,2]
[406776579,1772175039404,-500.0,0.0001289,2]
[406776580,1772175039415,-500.0,0.0001289,2]
[406776581,1772175039425,-500.0,0.0001289,2]
[406776582,1772175039435,-500.0,0.0001289,2]
[406776583,1772175039444,-500.0,0.0001289,2]
[406776584,1772175039454,-500.0,0.0001289,2]
[406776585,1772175039464,-500.0,0.0001289,2]
[406776586,1772175039475,-500.0,0.0001289,2]
[406776587,1772175039485,-500.0,0.0001289,2]
[406776588,1772175039494,-500.0,0.0001289,2]
[406776589,1772175039503,-500.0,0.0001289,2]
[406776590,1772175039513,-500.0,0.0001289,2]
[406776591,1772175039525,-500.0,0.0001289,2]
[406776592,1772175039535,-500.0,0.0001289,2]
[406776593,1772175039544,-500.0,0.0001289,2]
[406776594,1772175039553,-500.0,0.0001289,2]
[406776595,1772175039563,-500.0,0.0001289,2]
[406776596,1772175039572,-500.0,0.0001289,2]
[406776597,1772175039581,-500.0,0.0001289,2]
[406776598,1772175039591,-500.0,0.0001289,2]
[406776599,1772175039600,-500.0,0.0001289,2]
[406776600,1772175039609,-500.0,0.0001289,2]
[406776601,1772175039619,-500.0,0.0001289,2]
[406776602,1772175039628,-166.66,0.00013002,2]
[406776603,1772175039638,-3240.0,0.00013425,2]
[406776604,1772175039648,-166.66,0.00013432,2]
[406776605,1772175039666,-500.0,0.00013698,2]
[406776606,1772175039680,-500.0,0.00013698,2]
[406776607,1772175039690,-500.0,0.00013698,2]